bitfinex/quotes_SOLUSD_20251018
["timestamp","ask_amount","ask_price","bid_price","bid_amount"]
[1760765923430,3.15822776,184.4,184.38,44.0]
[1760765923656,2.95822776,184.39,184.38,44.0]
[1760765925622,2.95822776,184.39,184.36,44.0]
[1760765925926,2.28822776,184.37,184.36,44.0]
[1760765926344,2.28822776,184.37,184.36,45.21241701]
[1760765928251,2.28822776,184.37,184.36,44.67]
[1760765928856,2.95822776,184.37,184.36,44.0]
[1760765929158,2.28822776,184.37,184.36,44.0]
[1760765930160,0.67,184.39,184.36,44.0]
[1760765930367,2.28822776,184.37,184.36,44.0]
[1760765936846,2.28822776,184.37,184.36,44.67]
[1760765937261,2.28822776,184.37,184.36,44.0]
[1760765937565,2.95822776,184.37,184.36,44.0]
[1760765938264,2.28822776,184.37,184.36,44.0]
[1760765938759,2.28822776,184.37,184.36,50.63658711]
[1760765939264,2.28822776,184.38,184.36,50.63658711]
[1760765939465,1.46253611,184.38,184.37,0.67]
[1760765939643,1.46253611,184.39,184.37,0.67]
[1760765939843,1.46253611,184.39,184.38,0.54235817]
[1760765940059,1.46253611,184.39,184.38,1.21235817]
[1760765940568,1.66253611,184.4,184.38,6.6359399]
[1760765940873,0.2,184.4,184.39,0.67]
[1760765942059,0.2,184.4,184.39,44.67]
[1760765942246,0.2,184.4,184.39,50.09328759]
[1760765942563,0.2,184.4,184.39,50.63561634]
[1760765943061,1.66253611,184.4,184.39,44.54232875]
[1760765943545,1.66253611,184.4,184.39,50.09328759]
[1760765944463,0.2,184.4,184.39,50.09328759]
[1760765945259,0.2,184.4,184.39,50.63561634]
[1760765946145,1.66253611,184.4,184.39,44.54232875]
[1760765948165,1.66253611,184.4,184.39,50.62561634]
[1760765950062,1.66253611,184.4,184.39,45.20232875]
[1760765952255,0.2,184.4,184.39,45.20232875]
[1760765955050,1.66253611,184.4,184.39,45.20232875]
[1760765955569,0.2,184.4,184.39,45.20232875]
[1760765956361,2.31253611,184.4,184.39,44.0]
[1760765957184,1.66253611,184.4,184.39,44.0]
[1760765963188,1.66253611,184.4,184.39,44.66]
[1760765963369,1.66253611,184.4,184.39,50.62561634]
[1760765964899,1.66253611,184.4,184.39,45.20232875]
[1760765965319,0.2,184.4,184.39,45.20232875]
[1760765965620,1.66253611,184.4,184.39,45.20232875]
[1760765966716,1.66253611,184.4,184.39,50.62561634]
[1760765968502,0.2,184.4,184.39,50.62561634]
[1760765972406,1.66253611,184.4,184.39,50.62561634]
[1760765973719,2.31253611,184.4,184.39,44.0]
[1760765974292,0.2,184.4,184.39,44.0]
[1760765974496,0.2,184.4,184.39,44.66]
[1760765974986,0.2,184.4,184.39,45.20232875]
[1760765975816,0.2,184.4,184.39,50.62561634]
[1760765976115,0.2,184.44,184.39,50.62561634]
[1760765976320,0.2,184.45,184.41,0.28432314]
[1760765976492,0.2,184.45,184.42,1.20224053]
[1760765976694,0.2,184.47,184.43,28.08]
[1760765976892,0.2,184.47,184.46,22.88]
[1760765977096,0.2,184.54,184.47,22.88]
[1760765977322,0.2,184.54,184.49,22.88]
[1760765977504,0.2,184.54,184.51,5.70408358]
[1760765977897,0.2,184.54,184.51,6.40408358]
[1760765978097,0.2,184.54,184.51,8.57663877]
[1760765979433,0.2,184.54,184.51,8.29231563]
[1760765979931,0.2,184.54,184.51,35.71231563]
[1760765980634,0.2,184.54,184.51,8.29231563]
[1760765980934,0.2,184.54,184.51,35.99663877]
[1760765981610,1e-08,184.53,184.51,35.99663877]
[1760765981819,1e-08,184.53,184.52,1.24194667]
[1760765982030,0.2,184.59,184.54,22.88]
[1760765982231,0.2,184.59,184.55,28.94618171]
[1760765982609,0.2,184.59,184.56,0.7]
[1760765982928,0.2,184.59,184.58,5.41770506]
[1760765983113,0.2,184.59,184.58,6.11770506]
[1760765984829,0.2,184.59,184.58,35.70978835]
[1760765987640,2.11253611,184.64,184.6,5.41711809]
[1760765987820,0.65,184.63,184.61,0.54168246]
[1760765988426,0.65,184.63,184.62,2.17196535]
[1760765988738,2.11253611,184.66,184.62,2.87196535]
[1760765989039,0.65,184.65,184.63,0.54162378]
[1760765989615,0.65,184.67,184.63,5.95776162]
[1760765989819,2.11253611,184.66,184.63,5.95776162]
[1760765990015,0.65,184.65,184.63,5.95776162]
[1760765990415,0.65,184.67,184.63,5.95776162]
[1760765990714,0.85,184.68,184.64,0.7]
[1760765990920,0.65,184.67,184.65,0.54156512]
[1760765991218,0.2,184.68,184.65,1.24156512]
[1760765991939,0.2,184.68,184.66,6.11535795]
[1760765992129,0.2,184.68,184.67,1.24150647]
[1760765993062,2.31253611,184.68,184.67,0.54150647]
[1760765993218,0.85,184.68,184.66,0.54153579]
[1760765993543,0.2,184.68,184.66,1.24153579]
[1760765993741,0.2,184.68,184.66,5.95674395]
[1760765995631,0.2,184.77,184.69,1.99999999]
[1760765995953,0.2,184.77,184.74,22.88]
[1760765996124,0.2,184.77,184.75,28.74127198]
[1760765996451,0.2,184.77,184.75,1.24127198]
[1760765996621,0.2,184.77,184.76,2.16996229]
[1760765996823,0.85,184.77,184.76,2.16996229]
[1760765997143,0.85,184.77,184.75,0.54127198]
[1760765997539,0.2,184.77,184.75,0.54127198]
[1760765997746,0.2,184.77,184.76,0.54124269]
[1760765997921,0.85,184.77,184.76,0.54124269]
[1760765998129,0.85,184.77,184.74,0.54130128]
[1760765998333,0.85,184.77,184.71,0.5413892]
[1760765999538,0.85,184.77,184.71,5.95526272]
[1760765999839,0.65,184.76,184.71,6.65526272]
[1760766000143,0.65,184.76,184.72,0.7]
[1760766000450,0.2,184.77,184.73,1.24133059]
[1760766000657,0.65,184.76,184.73,0.54133059]
[1760766001030,0.85,184.77,184.73,0.54133059]
[1760766001230,0.65,184.76,184.74,0.54130128]
[1760766001959,0.85,184.77,184.74,0.54130128]
[1760766002253,0.65,184.76,184.74,0.54130128]
[1760766002552,0.65,184.76,184.72,0.54135989]
[1760766003347,0.65,184.76,184.73,0.54133059]
[1760766004037,0.69,184.76,184.73,0.54133059]
[1760766005153,0.2,184.77,184.73,0.54133059]
[1760766005348,0.69,184.76,184.73,0.54133059]
[1760766005830,0.2,184.77,184.73,0.54133059]
[1760766006026,0.2,184.77,184.63,1.99999999]
[1760766006027,0.69,184.75,184.68,0.54147714]
[1760766006259,2.27537122,184.74,184.68,0.54147714]
[1760766006437,0.69,184.73,184.68,0.54147714]
[1760766007039,0.69,184.73,184.66,0.54153579]
[1760766007752,2.27537122,184.69,184.64,0.54159445]
[1760766007938,0.69,184.68,184.64,0.54159445]
[1760766008831,2.27537122,184.67,184.61,0.54168246]
[1760766009032,0.69,184.66,184.61,0.54168246]
[1760766009227,2.27537122,184.63,184.58,0.5417705]
[1760766009432,0.69,184.62,184.58,0.5417705]
[1760766010029,2.27537122,184.63,184.58,0.5417705]
[1760766010030,0.69,184.61,184.58,0.5417705]
[1760766011251,0.69,184.6,184.58,0.5417705]
[1760766011453,0.69,184.6,184.56,0.54182921]
[1760766011652,0.69,184.6,184.56,5.96008563]
[1760766011958,0.69,184.6,184.56,6.65008563]
[1760766012259,0.69,184.6,184.57,22.88]
[1760766013455,0.69,184.62,184.58,0.5417705]
[1760766013629,0.69,184.61,184.58,0.5417705]
[1760766014049,0.69,184.6,184.58,0.5417705]
[1760766014444,0.69,184.6,184.56,5.96008502]
[1760766014641,0.69,184.6,184.56,6.65008502]
[1760766017059,2.27537122,184.62,184.56,1.23182921]
[1760766017266,0.69,184.59,184.55,23.42185857]
[1760766017468,2.96537122,184.58,184.55,44.44185857]
[1760766017771,0.69,184.59,184.55,43.9]
[1760766017977,0.69,184.58,184.55,43.9]
[1760766018838,0.69,184.58,184.55,44.44185857]
[1760766020456,2.27537122,184.6,184.55,44.44185857]
[1760766020656,0.69,184.59,184.55,45.13185857]
[1760766021149,0.69,184.59,184.55,50.55043576]
[1760766021346,0.69,184.58,184.55,50.55043576]
[1760766021551,0.69,184.57,184.55,44.44185857]
[1760766021863,0.69,184.57,184.55,43.9]
[1760766023555,0.69,184.56,184.53,44.4419173]
[1760766024060,0.69,184.56,184.55,22.88]
[1760766024369,2.27537122,184.57,184.55,22.88]
[1760766024571,2.96537122,184.57,184.55,22.88]
[1760766024859,2.27537122,184.57,184.55,22.88]
[1760766025038,0.69,184.56,184.55,22.88]
[1760766025244,0.69,184.56,184.53,43.9]
[1760766025442,2.96537122,184.55,184.53,43.9]
[1760766025668,2.27537122,184.55,184.53,43.9]
[1760766025868,0.69,184.54,184.53,43.9]
[1760766026259,0.69,184.54,184.51,0.54197604]
[1760766026260,0.69,184.54,184.5,67.47]
[1760766026459,0.69,184.56,184.51,1.23197604]
[1760766026659,2.96537122,184.55,184.51,1.23197604]
[1760766028670,2.96537122,184.55,184.51,45.13197604]
[1760766029049,0.69,184.54,184.51,44.44197604]
[1760766029653,2.8337702,184.64,184.54,22.88]
[1760766029862,2.27537122,184.59,184.55,0.69]
[1760766030146,0.69,184.59,184.55,0.69]
[1760766030355,2.96537122,184.59,184.55,0.69]
[1760766030766,2.27537122,184.59,184.56,0.69]
[1760766030965,2.96537122,184.59,184.56,1.23182921]
[1760766031167,2.96537122,184.59,184.56,0.54182921]
[1760766031355,0.69,184.59,184.56,0.54182921]
[1760766032077,0.69,184.59,184.55,1.23185857]
[1760766032279,2.27537122,184.58,184.55,1.23185857]
[1760766032579,2.27537122,184.56,184.54,44.44188793]
[1760766032779,0.69,184.55,184.48,44.44206418]
[1760766033080,2.27537122,184.49,184.45,0.69]
[1760766033255,2.27537122,184.49,184.43,22.88]
[1760766033459,2.27537122,184.49,184.44,5.96391949]
[1760766033658,2.27537122,184.49,184.45,0.69]
[1760766033863,2.27537122,184.49,184.46,0.69]
[1760766034683,2.27537122,184.47,184.44,6.6539971]
[1760766034990,2.27537122,184.47,184.45,0.69]
[1760766035756,2.27537122,184.47,184.44,5.9639971]
[1760766035975,2.27537122,184.47,184.44,6.6539971]
[1760766036357,2.27537122,184.47,184.44,1.23218173]
[1760766037886,2.27537122,184.47,184.39,22.98]
[1760766037887,2.27537122,184.45,184.4,1.23229934]
[1760766038086,2.27537122,184.43,184.4,1.23229934]
[1760766038976,2.27537122,184.41,184.4,43.9]
[1760766041093,2.27537122,184.41,184.39,0.64232875]
[1760766041680,2.97537122,184.41,184.39,44.54232875]
[1760766042196,0.28432314,184.48,184.39,44.54232875]
[1760766042197,2.27537122,184.4,184.39,0.64232875]
[1760766042379,2.97537122,184.4,184.39,0.1]
[1760766043291,2.27537122,184.4,184.36,6.32658377]
[1760766043494,2.27537122,184.39,184.36,6.32658377]
[1760766043893,2.97537122,184.39,184.36,5.96658377]
[1760766044298,2.27537122,184.39,184.36,5.96658377]
[1760766044486,2.27537122,184.39,184.34,5.42475859]
[1760766044792,2.27537122,184.39,184.35,0.54244643]
[1760766045291,2.27537122,184.39,184.36,0.66]
[1760766045495,2.27537122,184.39,184.36,6.08399849]
[1760766046195,2.27537122,184.39,184.35,6.62690283]
[1760766046401,2.97537122,184.39,184.35,6.62690283]
[1760766046704,2.27537122,184.39,184.35,6.62690283]
[1760766047394,2.97537122,184.39,184.35,6.62690283]
[1760766048188,0.7,184.39,184.35,6.62690283]
[1760766048600,2.97537122,184.4,184.35,6.62690283]
[1760766052299,2.97537122,184.4,184.36,0.66]
[1760766052490,2.27537122,184.41,184.37,1.20238759]
[1760766052690,2.97537122,184.41,184.37,1.20238759]
[1760766053095,2.27537122,184.41,184.37,0.54238759]
[1760766053293,2.27537122,184.41,184.38,0.66]
[1760766053505,2.27537122,184.41,184.38,1.20235817]
[1760766053816,2.97537122,184.41,184.38,0.54235817]
[1760766056123,2.97537122,184.41,184.38,5.96586514]
[1760766056307,2.27537122,184.43,184.39,0.66]
[1760766056504,2.97537122,184.43,184.39,0.66]
[1760766057619,2.97537122,184.43,184.38,5.96586514]
[1760766057806,2.27537122,184.43,184.39,0.66]
[1760766058421,2.27537122,184.43,184.39,6.08311856]
[1760766058626,2.27537122,184.43,184.39,5.96544731]
[1760766058826,2.97537122,184.43,184.39,5.96544731]
[1760766059225,0.7,184.42,184.39,5.96544731]
[1760766060504,2.27537122,184.43,184.39,49.86544731]
[1760766060705,2.97537122,184.43,184.39,49.86544731]
[1760766061418,2.16193434,184.43,184.39,49.86544731]
[1760766062620,2.16193434,184.43,184.39,50.52544731]
[1760766062820,1.46193434,184.43,184.39,50.52544731]
[1760766063025,2.16193434,184.43,184.39,50.52544731]
[1760766066125,0.7,184.43,184.39,45.10232875]
[1760766066423,2.16193434,184.42,184.39,45.10232875]
[1760766066817,1.46193434,184.42,184.39,45.10232875]
[1760766067216,1.46193434,184.43,184.39,49.86555055]
[1760766067534,1.46193434,184.42,184.39,45.16232875]
[1760766067733,1.46193434,184.41,184.39,44.44232875]
[1760766068528,2.14193434,184.4,184.39,43.9]
[1760766068907,1.46193434,184.4,184.39,43.9]
[1760766070829,0.68,184.41,184.39,43.9]
[1760766072127,1.46193434,184.42,184.39,43.9]
[1760766072435,0.68,184.41,184.39,43.9]
[1760766072813,1.46193434,184.44,184.4,0.69]
[1760766073030,23.02216157,184.47,184.4,0.69]
[1760766073031,2.14193434,184.45,184.41,0.69]
[1760766073529,0.68,184.44,184.41,0.69]
[1760766073929,0.68,184.44,184.4,43.9]
[1760766074127,0.68,184.44,184.4,44.59]
[1760766075026,1.46193434,184.45,184.41,0.69]
[1760766075027,2.14193434,184.45,184.41,0.69]
[1760766075215,0.68,184.44,184.4,49.86519416]
[1760766075415,0.68,184.44,184.4,50.55519416]
[1760766075612,1.46193434,184.45,184.4,49.86519416]
[1760766075815,1.46193434,184.46,184.41,0.69]
[1760766076010,2.14193434,184.46,184.41,50.01244203]
[1760766076239,0.68,184.45,184.41,50.01244203]
[1760766077122,1.46193434,184.46,184.42,1.23224053]
[1760766077318,2.14193434,184.47,184.43,0.69]
[1760766077719,0.68,184.47,184.43,44.59]
[1760766077928,0.68,184.46,184.43,43.9]
[1760766078440,1.46193434,184.47,184.43,43.9]
[1760766078646,0.68,184.46,184.43,43.9]
[1760766078831,1.46193434,184.46,184.43,43.9]
[1760766079028,2.14193434,184.45,184.43,43.9]
[1760766079342,0.68,184.45,184.43,43.9]
[1760766079723,1.46193434,184.46,184.43,43.9]
[1760766079925,2.14193434,184.46,184.43,43.9]
[1760766080237,0.68,184.45,184.43,43.9]
[1760766082130,2.14193434,184.45,184.43,43.9]
[1760766082439,1.46193434,184.45,184.43,43.9]
[1760766082644,0.68,184.44,184.43,43.9]
[1760766083038,1.46193434,184.45,184.43,43.9]
[1760766083247,2.14193434,184.45,184.43,43.9]
[1760766083825,152.5261431,193.28,184.44,1.23218173]
[1760766083826,0.68,184.5,184.44,1.23218173]
[1760766084024,1.46193434,184.49,184.44,44.44218173]
[1760766084245,2.14193434,184.49,184.45,0.69]
[1760766085344,1.46193434,184.49,184.46,0.69]
[1760766087147,1.46193434,184.49,184.46,44.59]
[1760766088332,0.68,184.52,184.47,1.23209356]
[1760766088644,1.46193434,184.5,184.47,1.23209356]
[1760766089352,2.14193434,184.51,184.47,1.23209356]
[1760766089727,2.14193434,184.51,184.47,45.13209356]
[1760766089930,1.46193434,184.52,184.48,0.69]
[1760766090124,2.14193434,184.53,184.48,44.59]
[1760766090327,2.14193434,184.53,184.49,0.69]
[1760766091841,0.68,184.54,184.5,0.69]
[1760766092158,1.46193434,184.54,184.49,5.96229833]
[1760766092353,2.14193434,184.53,184.49,1.23203479]
[1760766092668,2.14193434,184.52,184.49,0.54203479]
[1760766093143,1.46193434,184.53,184.5,0.69]
[1760766093978,1.46193434,184.55,184.51,0.69]
[1760766094272,2.14193434,184.56,184.52,0.69]
[1760766094455,2.14193434,184.56,184.52,44.59]
[1760766094841,2.14193434,184.55,184.52,43.9]
[1760766095053,0.68,184.54,184.52,43.9]
[1760766095678,1.46193434,184.55,184.52,43.9]
[1760766095858,4.62814233,184.6,184.52,44.59]
[1760766096185,1.46193434,184.55,184.52,43.9]
[1760766096402,2.14193434,184.54,184.52,43.9]
[1760766096682,2.14193434,184.53,184.52,43.9]
[1760766097175,1.46193434,184.53,184.52,43.9]
[1760766106601,0.28432314,184.57,184.52,43.9]
[1760766106904,1.46193434,184.53,184.52,43.9]
[1760766108480,0.66,184.54,184.52,43.9]
[1760766108681,2.12193434,184.54,184.52,43.9]
[1760766110582,1.46193434,184.55,184.53,0.71]
[1760766111490,1.46193434,184.55,184.52,49.86132833]
[1760766111690,1.46193434,184.55,184.54,0.71]
[1760766111887,1.46193434,184.55,184.53,17.0094757]
[1760766112191,1.46193434,184.55,184.53,0.71]
[1760766112698,2.12193434,184.54,184.52,60.1994757]
[1760766112993,1.46193434,184.53,184.52,43.9]
[1760766114205,1.46193434,184.53,184.52,46.0733815]
[1760766116708,1.46193434,184.54,184.52,46.0733815]
[1760766117689,1.46193434,184.54,184.52,46.7833815]
[1760766119810,2.12193434,184.53,184.52,2.1733815]
[1760766120112,2.12193434,184.53,184.48,2.17373583]
[1760766120314,1.46193434,184.51,184.48,2.88373583]
[1760766121188,2.12193434,184.51,184.48,7.59425731]
[1760766121498,2.94255913,184.51,184.48,7.59425731]
[1760766121708,2.28255913,184.51,184.48,8.30425731]
[1760766124912,2.28255913,184.51,184.48,7.59425731]
[1760766125109,2.94255913,184.51,184.48,7.59425731]
[1760766125502,2.94255913,184.51,184.48,51.49425731]
[1760766125812,2.94255913,184.51,184.48,52.17425731]
[1760766126314,0.66,184.5,184.48,46.07373583]
[1760766126490,2.94255913,184.49,184.48,43.9]
[1760766127205,2.28255913,184.49,184.48,43.9]
[1760766128717,2.28255913,184.5,184.48,43.9]
[1760766128893,2.96255913,184.5,184.48,43.9]
[1760766132421,2.28255913,184.5,184.48,44.61]
[1760766132804,2.28255913,184.5,184.48,43.9]
[1760766133324,2.96255913,184.5,184.48,43.9]
[1760766135008,2.28255913,184.5,184.48,43.9]
[1760766135203,23.56,184.53,184.48,43.9]
[1760766135398,2.28255913,184.49,184.46,43.9]
[1760766135606,0.68,184.48,184.45,43.9]
[1760766136019,2.28255913,184.46,184.45,43.9]
[1760766137120,2.28255913,184.51,184.45,6.13148496]
[1760766137325,2.28255913,184.5,184.46,1.25212295]
[1760766137624,2.28255913,184.5,184.47,0.71]
[1760766138028,2.96255913,184.5,184.47,0.71]
[1760766139230,0.68,184.5,184.47,0.71]
[1760766139429,2.96255913,184.5,184.46,6.6732635]
[1760766140529,2.28255913,184.5,184.47,0.71]
[1760766140925,2.96255913,184.5,184.47,0.71]
[1760766141227,2.28255913,184.5,184.47,0.71]
[1760766142233,2.28255913,184.5,184.47,2.99255913]
[1760766142531,2.28255913,184.5,184.47,0.71]
[1760766142727,2.28255913,184.51,184.48,0.71]
[1760766143233,2.96255913,184.51,184.48,0.71]
[1760766143835,2.96255913,184.51,184.47,2.99255913]
[1760766144537,2.96255913,184.51,184.47,0.71]
[1760766145342,2.96255913,184.51,184.47,6.13084763]
[1760766145520,2.96255913,184.51,184.47,5.42084763]
[1760766145720,2.96255913,184.51,184.48,0.71]
[1760766146420,2.96255913,184.51,184.48,44.61]
[1760766146623,2.96255913,184.51,184.48,43.9]
[1760766146926,0.68,184.5,184.48,43.9]
[1760766147333,2.96255913,184.49,184.48,43.9]
[1760766147638,2.28255913,184.49,184.48,43.9]
[1760766148433,2.96255913,184.49,184.48,43.9]
[1760766149639,2.28255913,184.49,184.48,43.9]
[1760766151248,0.68,184.5,184.48,43.9]
[1760766151436,2.28255913,184.49,184.48,43.9]
[1760766153359,2.96255913,184.5,184.48,43.9]
[1760766155642,0.68,184.5,184.48,43.9]
[1760766156350,2.96255913,184.51,184.48,43.9]
[1760766156553,0.68,184.5,184.48,43.9]
[1760766160656,2.28255913,184.51,184.48,43.9]
[1760766160862,0.71,184.57,184.49,1.23203479]
[1760766161045,2.99255913,184.57,184.5,0.69]
[1760766161255,2.28255913,184.55,184.5,0.69]
[1760766161760,2.99255913,184.55,184.5,0.69]
[1760766162343,0.71,184.55,184.5,0.69]
[1760766162555,0.71,184.55,184.51,16.30124704]
[1760766162743,0.71,184.55,184.51,16.99124704]
[1760766162946,2.99255913,184.55,184.51,16.99124704]
[1760766163263,2.99255913,184.55,184.51,0.69]
[1760766163456,2.99255913,184.55,184.52,0.69]
[1760766163762,2.99255913,184.55,184.52,16.99124704]
[1760766163962,0.71,184.55,184.52,16.99124704]
[1760766164282,2.99255913,184.58,184.53,1.2319173]
[1760766164561,2.99255913,184.58,184.54,0.69]
[1760766164948,2.28255913,184.58,184.54,0.69]
[1760766165144,22.88,184.62,184.54,6.10887887]
[1760766165370,2.28255913,184.58,184.55,16.98770473]
[1760766165858,2.28255913,184.61,184.56,1.23182921]
[1760766166067,2.99255913,184.61,184.57,0.69]
[1760766166246,2.28255913,184.6,184.57,0.69]
[1760766166447,2.28255913,184.6,184.58,4.51598781]
[1760766167059,0.71,184.61,184.58,4.51598781]
[1760766167255,2.99255913,184.61,184.58,5.20598781]
[1760766167458,2.28255913,184.61,184.58,4.51598781]
[1760766167778,2.28255913,184.61,184.58,10.62365237]
[1760766167959,0.91,184.63,184.59,0.69]
[1760766167960,2.28255913,184.62,184.59,0.69]
[1760766168546,0.2,184.63,184.59,0.69]
[1760766168860,2.99255913,184.62,184.59,0.69]
[1760766169667,0.71,184.62,184.58,10.47540177]
[1760766169849,2.99255913,184.62,184.58,11.16540177]
[1760766170654,0.2,184.63,184.59,0.69]
[1760766170961,2.48255913,184.63,184.59,0.69]
[1760766171140,2.48255913,184.63,184.6,0.69]
[1760766171867,3.19255913,184.63,184.6,0.69]
[1760766172959,3.19255913,184.63,184.6,44.59]
[1760766173350,3.19255913,184.63,184.6,43.9]
[1760766173746,3.19255913,184.63,184.6,44.59]
[1760766174449,0.91,184.63,184.6,44.59]
[1760766174746,2.28255913,184.62,184.6,43.9]
[1760766175165,2.28255913,184.62,184.6,44.59]
[1760766175767,0.2,184.63,184.6,44.59]
[1760766176064,2.48255913,184.63,184.6,44.59]
[1760766176245,2.48255913,184.63,184.6,43.9]
[1760766176445,2.48255913,184.63,184.6,44.59]
[1760766176446,3.19255913,184.63,184.6,44.59]
[1760766178174,3.19255913,184.63,184.6,43.9]
[1760766178842,3.19255913,184.63,184.6,44.59]
[1760766180355,0.2,184.63,184.61,0.69]
[1760766180558,0.2,184.63,184.62,0.54165312]
[1760766180760,0.2,184.63,184.62,44.44165312]
[1760766180955,0.2,184.63,184.62,45.13165312]
[1760766182067,0.2,184.63,184.62,50.54818437]
[1760766186882,0.2,184.63,184.62,45.13165312]
[1760766187058,0.2,184.63,184.62,43.9]
[1760766187258,0.2,184.63,184.59,0.7]
[1760766187259,2.37846766,184.63,184.61,43.9]
[1760766187459,1.45846766,184.62,184.61,43.9]
[1760766188066,2.37846766,184.63,184.61,43.9]
[1760766190182,0.92,184.63,184.61,43.9]
[1760766190380,2.37846766,184.63,184.61,43.9]
[1760766190580,1.65846766,184.63,184.6,49.85881184]
[1760766190792,1.65846766,184.63,184.61,0.71]
[1760766190990,0.2,184.63,184.61,0.71]
[1760766191584,0.2,184.63,184.61,6.12671847]
[1760766193672,0.2,184.63,184.62,0.54165312]
[1760766194166,0.2,184.63,184.61,5.95840093]
[1760766194876,0.2,184.63,184.61,6.66840093]
[1760766196476,0.2,184.63,184.61,50.56840093]
[1760766197302,1.65846766,184.63,184.61,43.9]
[1760766197477,2.37846766,184.63,184.61,43.9]
[1760766197672,0.2,184.63,184.61,43.9]
[1760766197890,0.2,184.63,184.61,49.31662683]
[1760766198194,0.2,184.63,184.61,50.02662683]
[1760766198396,0.2,184.63,184.61,50.56830929]
[1760766198867,0.2,184.63,184.62,0.71]
[1760766199074,0.2,184.63,184.62,6.12653125]
[1760766200678,0.2,184.63,184.62,29.00653125]
[1760766201993,0.2,184.63,184.62,52.73979597]
[1760766203575,0.2,184.63,184.62,75.61979597]
[1760766203774,0.2,184.63,184.62,103.30411911]
[1760766204185,0.2,184.63,184.62,103.01979597]
[1760766209595,0.2,184.63,184.62,103.30411911]
[1760766210188,0.72,184.68,184.62,116.84544724]
[1760766210384,0.72,184.68,184.63,0.71]
[1760766210704,0.72,184.67,184.64,0.54159445]
[1760766210887,0.72,184.67,184.64,2.71297028]
[1760766211198,0.72,184.67,184.65,5.41565123]
[1760766211389,0.72,184.67,184.66,0.54153579]
[1760766211592,0.72,184.67,184.66,44.44153579]
[1760766213496,0.72,184.67,184.66,49.85689374]
[1760766218289,0.67,184.68,184.66,49.85689374]
[1760766218993,0.67,184.67,184.66,49.85689374]
[1760766219312,0.2,184.69,184.66,49.85689374]
[1760766219603,0.2,184.69,184.67,0.67]
[1760766219816,0.2,184.69,184.68,1.21147714]
[1760766220405,0.2,184.69,184.68,3.38249942]
[1760766220606,0.2,184.69,184.68,8.79727091]
[1760766220811,0.2,184.69,184.68,8.12727091]
[1760766221102,0.87,184.69,184.68,0.54147714]
[1760766221294,0.87,184.69,184.67,5.9564822]
[1760766221703,0.67,184.68,184.67,5.9564822]
[1760766223199,0.2,184.69,184.67,49.8564822]
[1760766223387,0.87,184.69,184.67,49.8564822]
[1760766223584,0.2,184.69,184.67,49.8564822]
[1760766223807,0.87,184.69,184.67,49.8564822]
[1760766224026,0.2,184.69,184.67,50.5264822]
[1760766224802,0.2,184.69,184.68,0.67]
[1760766224993,0.2,184.69,184.67,49.8564822]
[1760766225207,0.2,184.69,184.67,50.5264822]
[1760766229114,0.2,184.69,184.67,52.69762231]
[1760766229317,0.2,184.69,184.68,6.08477149]
[1760766230117,0.2,184.69,184.68,5.41477149]
[1760766231133,0.87,184.69,184.68,43.9]
[1760766232023,0.87,184.69,184.68,46.07137583]
[1760766232224,0.87,184.69,184.68,46.61285297]
[1760766234011,2.32846766,184.69,184.62,43.9]
[1760766234197,1.45846766,184.64,184.62,43.9]
[1760766234500,2.12846766,184.64,184.62,60.18974017]
[1760766234703,1.45846766,184.64,184.62,60.18974017]
[1760766234905,1.45846766,184.64,184.62,65.60621082]
[1760766234906,2.12846766,184.64,184.62,65.60621082]
[1760766235421,0.67,184.64,184.62,65.60621082]
[1760766237323,2.12846766,184.65,184.62,65.60621082]
[1760766237495,2.12846766,184.65,184.62,66.14786394]